[Event "10th Cherry Blossom Classic 2023"]
[Site "Dulles"]
[Date "2023.05.29"]
[Round "9.14"]
[White "Williams, Justus"]
[Black "Samuelson, Andrew"]
[Result "1-0"]
[ECO "E91"]
[WhiteElo "2396"]
[BlackElo "2019"]
[Annotator "TA"]
[PlyCount "73"]
[EventDate "2023.05.24"]
[EventType "swiss"]
[EventCountry "USA"]
[SourceTitle "playchess.com"]
[Source "ChessBase"]
[SourceQuality "1"]
[TimeControl "5400+30"]

{[%evp 15,73,-43,-53,-77,0,-16,32,-4,-4,-5,0,0,0,0,0,0,8,3,17,0,0,-33,-22,-59,-43,-41,42,19,6,0,0,-32,-31,-36,-43,-32,-17,-46,33,-39,-35,-112,107,98,472,467,455,450,602,585,571,490,516,514,514,511,501,500,483,465]} 1. Nf3 {[%emt 0:03:18]} c5 {[%emt 0:00:08]} 2. c4 {[%emt 0:00:24]} Nf6 {[%emt 0:00:11]} 3. Nc3 {[%emt 0:01:41]} g6 {[%emt 0:01:00]} 4. e4 {[%emt 0:00:58]} d6 {[%emt 0:00:17]} 5. d4 {[%emt 0:00:34]} Bg7 {[%emt 0:01:57]} 6. Be2 {[%emt 0:00:50]} O-O {[%emt 0:00:51]} 7. dxc5 {[%emt 0:01:28]} dxc5 {[%emt 0:00:15]} 8. Qxd8 {[%emt 0:00:24]} Rxd8 {[%emt 0:00:04]} 9. Be3 {[%emt 0:01:19] [#] E91: King's Indian: Classical: 6 Be2, unusual replies including 6...c5 and 6...Bg4.} Na6 {[%emt 0:01:07]} (9... b6 $1 $17) 10. a3 {[%emt 0:00:30] [#]} h6 $146 {[%emt 0:02:14]} (10... b6 $11) ({Predecessor:} 10... Be6) 11. h3 {[%emt 0:00:16] White is slightly better.} (11. e5 $5 {[%cal Re5f6]} Ne8 12. Nd5 $14) 11... b6 {[%emt 0:01:05]} 12. e5 {[%emt 0:05:41]} Nd7 {[%emt 0:02:50]} 13. e6 {[%emt 0:01:33]} fxe6 {[%emt 0:00:19]} 14. Bd3 {[%emt 0:00:26]} Bb7 {[%emt 0:01:11]} 15. Bxg6 {[%emt 0:00:55]} Nf8 {[%emt 0:05:04]} 16. Bc2 {[%emt 0:00:24]} Nc7 {[%emt 0:00:40]} 17. Bf4 {[%emt 0:01:15]} Ne8 {[%emt 0:00:28]} 18. O-O {[%emt 0:00:53]} Nd6 {[%emt 0:00:14]} 19. Bd3 {[%emt 0:02:57]} Nf5 {[%emt 0:02:16]} 20. Rad1 {[%emt 0:00:17]} Nd4 {[%emt 0:05:47]} (20... Bxf3 $15 21. gxf3 Rd7) 21. Ne5 {[%emt 0:01:13]} (21. Nxd4 {simplifies} cxd4 22. Ne4 e5 23. Bg3) 21... Nd7 {[%emt 0:01:44]} 22. Ng6 {[%emt 0:03:54]} (22. Rfe1 {simplifies} Nxe5 23. Bxe5 Bxe5 24. Rxe5 Kf7 25. Kf1) 22... Kf7 {[%emt 0:00:17]} 23. Rfe1 {[%emt 0:02:18]} (23. h4 $5) 23... Rg8 {[%emt 0:00:47] ...Bf6 is the strong threat.} 24. h4 {[%emt 0:03:56]} h5 $1 {[%emt 0:01:01] ...Bf6 would be deadly.} 25. Bg3 {[%emt 0:02:56]} Bf6 {[%emt 0:00:26] And now ...e5 would win.} 26. Nf4 {[%emt 0:00:11]} e5 {[%emt 0:12:31]} (26... Ne5 $15) 27. Nxh5 {[%emt 0:02:18]} ({Better is} 27. Nfd5 $1 $14) 27... Bxh4 $1 $15 {[%emt 0:01:28][%cal Og8h8][%mdl 64] [#] Decoy} 28. Bxh4 {[%emt 0:01:44]} (28. Be4 $1 $15 Bxe4 29. Rxe4) 28... Nf3+ $2 {[%emt 0:01:26]} (28... Rxg2+ $17 29. Kf1 Rh2) 29. Kf1 $16 {[%emt 0:00:19]} Nxh4 {[%emt 0:00:16][%mdl 8192] Black cannot hold the game after this.} (29... Nxe1 $16 {is more resistant.} 30. Kxe1 (30. Rxe1 $2 {is the wrong capture.} Bxg2+ 31. Ke2 Rh8 $19) 30... Bxg2) 30. Be4 $18 {[%emt 0:00:22] White is clearly winning.} Bxe4 {[%emt 0:04:41]} 31. Rxe4 {[%emt 0:00:05]} Nxg2 {[%emt 0:01:34]} 32. Rxd7 {[%emt 0:00:11]} Ke6 {[%emt 0:00:06]} 33. Rd5 {[%emt 0:00:27]} Rg5 {[%emt 0:00:08]} 34. Ng3 {[%emt 0:00:33]} Nf4 {[%emt 0:00:27]} 35. Rxf4 {[%emt 0:00:08]} exf4 {[%emt 0:00:12]} 36. Rxg5 {[%emt 0:00:03]} fxg3 {[%emt 0:00:15]} 37. Rxg3 {[%emt 0:00:15] Weighted Error Value: White=0.21 (precise) /Black=0.50} ({Much less strong is} 37. fxg3 Rd8 38. Nd5 Kf7 39. Rf5+ Ke6 $18) 1-0

[Event "10th Cherry Blossom Classic 2023"]
[Site "Dulles"]
[Date "2023.05.30"]
[Round "9.15"]
[White "Slate, Kent"]
[Black "Brady, Tyson"]
[Result "0-1"]
[ECO "B22"]
[WhiteElo "1989"]
[BlackElo "2092"]
[Annotator "TA"]
[PlyCount "76"]
[EventDate "2023.05.24"]
[EventType "swiss"]
[EventCountry "USA"]
[SourceTitle "playchess.com"]
[Source "ChessBase"]
[SourceQuality "1"]
[TimeControl "5400+30"]

{[%evp 20,76,18,0,39,22,28,-5,0,-28,-24,-36,-44,-50,-27,-45,0,-7,0,0,14,-27,-18,-41,-25,-37,16,8,36,8,11,12,49,25,29,42,9,-39,-39,-36,-35,-21,-32,-196,-196,-437,-429,-1114,-947,-29983,-29984,-29984,-29985,-29989,-29990,-29990,-29981,-29981,-29981]} 1. e4 {[%emt 0:00:54]} c5 {[%emt 0:00:09]} 2. c3 {[%emt 0:00:05]} d5 {[%emt 0:00:02]} 3. exd5 {[%emt 0:00:06]} Qxd5 {[%emt 0:00:03]} 4. Nf3 {[%emt 0:00:17]} Nc6 {[%emt 0:00:45]} 5. Na3 {[%emt 0:01:26][%cal Bb1a3,Ba3b5,Bb5d6][%mdl 32]} Nf6 {[%emt 0:00:18]} 6. d4 {[%emt 0:00:11]} e6 {[%emt 0:00:07]} 7. Be2 {[%emt 0:01:01]} Be7 {[%emt 0:01:08]} 8. O-O {[%emt 0:01:09]} O-O {[%emt 0:03:28]} 9. Nb5 {[%emt 0:06:23]} Qd8 {[%emt 0:01:12]} 10. dxc5 {[%emt 0:02:14]} Bxc5 {[%emt 0:00:04]} 11. Bf4 {[%emt 0:02:15]} Nd5 {[%emt 0:03:47] B22: Sicilian: 2 c3.} 12. Bg3 {[%emt 0:00:20]} a6 {[%emt 0:03:57]} 13. c4 {[%emt 0:09:06] [#]} Nf6 $146 {[%emt 0:06:55][%cal Bd5f6,Bf6h5,Bh5g3][%mdl 32] The position is equal.} ({Predecessor:} 13... axb5 14. cxd5 exd5 15. Bxb5 Qb6 16. a4 Bg4 17. Qxd5 Rfd8 18. Qg5 Bxf3 19. gxf3 Nd4 {0-1 Bragin,S (2178)-Saprikin,V Tula-ch op 2001 (7)}) 14. Nd6 {[%emt 0:02:04]} Nh5 {[%emt 0:02:07]} 15. Nxc8 {[%emt 0:02:54][%cal Og3d6] [#] And now Bd6! would win.} Nxg3 {[%emt 0:00:25]} 16. hxg3 {[%emt 0:00:14][%cal Oa2a3]} Rxc8 {[%emt 0:02:49]} 17. a3 {[%emt 0:02:41]} Qf6 {[%emt 0:11:59]} (17... a5 {simplifies} 18. Qxd8 Rfxd8 19. Rfd1 Be7) 18. b4 {[%emt 0:02:44]} Rfd8 {[%emt 0:00:29]} 19. Qb3 {[%emt 0:01:38]} Nd4 {[%emt 0:02:54]} 20. Nxd4 {[%emt 0:00:38]} (20. Qa2 $5 {[%cal Rb4c5]} Nxe2+ 21. Qxe2 $11) 20... Bxd4 {[%emt 0:00:03]} 21. Rad1 {[%emt 0:05:30] White is weak on the dark squares} e5 {[%emt 0:04:55]} 22. Bf3 {[%emt 0:01:31]} b5 {[%emt 0:00:12]} (22... b6 $15) 23. c5 $11 {[%emt 0:04:46]} Qg6 {[%emt 0:01:32]} 24. Bb7 {[%emt 0:01:51]} Rc7 {[%emt 0:00:03]} 25. Qf3 {[%emt 0:00:09]} Re7 {[%emt 0:12:38]} 26. c6 {[%emt 0:05:12]} Qd6 {[%emt 0:00:18]} 27. Bxa6 {[%emt 0:06:00]} e4 $1 {[%emt 0:00:18][%cal Be5e4,Be4e3][%mdl 32]} 28. Qf5 {[%emt 0:01:15]} (28. Rxd4 $11 Qxd4 29. Qe3) 28... Qxc6 $15 {[%emt 0:07:30]} (28... e3 $2 29. fxe3 Bxe3+ 30. Kh2 Qh6+ 31. Qh3 $18) 29. Bxb5 {[%emt 0:02:38]} Qb6 {[%emt 0:04:41]} 30. Bc4 {[%emt 0:07:47]} g6 {[%emt 0:07:08]} 31. Qg5 {[%emt 0:07:00] [#] This costs White the game.} ({White should play} 31. Qg4 $15) 31... Re5 $1 $19 {[%emt 0:01:39]} (31... Bxf2+ 32. Kh2 Rde8 33. Qf4 $17) 32. Qg4 $2 {[%emt 0:08:23]} (32. Qf4 {was the only defense.} Rf5 {[%mdl 64] Skewer} 33. Rxd4 (33. Qxe4 Bxf2+ 34. Kh2 Rh5+) 33... Rxf4 34. Rxd8+ Qxd8 35. gxf4) 32... e3 {[%emt 0:05:09]} 33. Rxd4 {[%emt 0:02:18]} ({Much weaker is} 33. Bxf7+ Kg7 34. fxe3 Bxe3+ 35. Kh2 Qb5) (33. fxe3 $142 Bxe3+ 34. Kh2 Rh5+ 35. Qxh5 gxh5 36. Rxd8+ Qxd8 37. Rxf7) 33... Rxd4 {[%emt 0:01:41]} (33... Qxd4 $2 {too greedy.} 34. Bxf7+ Kg7 35. Qxd4 Rxd4 36. Bb3 $19) 34. Bxf7+ {[%emt 0:04:30]} Kg7 {[%emt 0:00:10] Black mates.} 35. Qf3 {[%emt 0:00:20]} exf2+ {[%emt 0:00:41]} 36. Qxf2 {[%emt 0:00:46]} Rf5 {[%emt 0:00:10] Active counter play!} 37. Qb2 {[%emt 0:00:14]} Rxf1+ {[%emt 0:00:03]} 38. Kxf1 {[%emt 0:00:09]} Qf6+ {[%emt 0:00:02] Weighted Error Value: White=0.56/Black=0.17 (very precise)} 0-1

[Event "10th Cherry Blossom Classic 2023"]
[Site "Dulles"]
[Date "2023.05.30"]
[Round "9.16"]
[White "Slade, Theodore"]
[Black "Ling, Evan"]
[Result "1-0"]
[ECO "E11"]
[WhiteElo "2021"]
[BlackElo "1952"]
[Annotator "RC"]
[PlyCount "67"]
[EventDate "2023.05.24"]
[EventType "swiss"]
[EventCountry "USA"]
[SourceTitle "playchess.com"]
[Source "ChessBase"]
[SourceQuality "1"]
[TimeControl "5400+30"]

1. d4 {[%emt 0:00:00]} d5 {[%emt 0:04:14]} 2. c4 {[%emt 0:00:52]} e6 {[%emt 0:00:04]} 3. Nf3 {[%emt 0:00:12]} Nf6 {[%emt 0:00:11]} 4. g3 {[%emt 0:00:08]} Bb4+ {[%emt 0:02:12]} 5. Bd2 {[%emt 0:00:16]} Be7 {[%emt 0:00:06]} 6. Bg2 {[%emt 0:00:19]} c6 {[%emt 0:00:14]} 7. O-O {[%emt 0:00:22]} Nbd7 {[%emt 0:00:04]} 8. Qc2 {[%emt 0:00:49]} Ne4 {[%emt 0:00:46]} 9. Bf4 {[%emt 0:04:19]} g5 {[%emt 0:00:19]} 10. Bc1 {[%emt 0:01:49]} h5 {[%emt 0:02:11]} 11. Nc3 {[%emt 0:03:06]} Nd6 {[%emt 0:02:46]} 12. cxd5 {[%emt 0:07:47]} cxd5 {[%emt 0:00:09]} 13. e4 {[%emt 0:04:40]} g4 {[%emt 0:04:36]} 14. Ne5 {[%emt 0:03:51]} dxe4 {[%emt 0:00:20]} 15. Nxe4 {[%emt 0:00:45]} Nf5 {[%emt 0:01:07]} 16. Rd1 {[%emt 0:04:36]} Nb6 {[%emt 0:02:15]} 17. Nc3 {[%emt 0:11:16]} Nd5 {[%emt 0:04:06]} 18. Nxd5 {[%emt 0:04:53]} exd5 {[%emt 0:00:03]} 19. Qb3 {[%emt 0:02:06]} Qb6 {[%emt 0:04:32]} 20. Qxb6 {[%emt 0:03:09]} axb6 {[%emt 0:00:02]} 21. Bxd5 {[%emt 0:00:30]} O-O {[%emt 0:00:50]} 22. Bf4 {[%emt 0:05:50]} Be6 {[%emt 0:00:57]} 23. Bxb7 {[%emt 0:00:37]} Rxa2 {[%emt 0:00:18]} 24. Rxa2 {[%emt 0:06:18]} Bxa2 {[%emt 0:00:02]} 25. d5 {[%emt 0:00:51]} Bd6 {[%emt 0:02:36]} 26. Nd7 {[%emt 0:06:56]} Rd8 {[%emt 0:09:53]} 27. Nf6+ {[%emt 0:01:29]} Kf8 {[%emt 0:04:33]} 28. Bxd6+ {[%emt 0:02:17]} Nxd6 {[%emt 0:00:13]} 29. Bc6 {[%emt 0:00:26]} Nc4 {[%emt 0:00:35]} 30. b4 {[%emt 0:06:13]} Ne5 {[%emt 0:01:59]} 31. b5 {[%emt 0:01:59]} Ke7 {[%emt 0:02:02]} 32. Nxh5 {[%emt 0:13:42]} Rh8 {[%emt 0:00:08]} 33. d6+ {[%emt 0:00:30]} Kd8 {[%emt 0:00:28]} 34. Nf4 {[%emt 0:01:12]} 1-0

[Event "10th Cherry Blossom Classic 2023"]
[Site "Dulles"]
[Date "2023.05.30"]
[Round "9.17"]
[White "Diao, Matthew Guo"]
[Black "Su, Kevin"]
[Result "0-1"]
[ECO "E61"]
[WhiteElo "1973"]
[BlackElo "2038"]
[Annotator "TA"]
[PlyCount "78"]
[EventDate "2023.05.24"]
[EventType "swiss"]
[EventCountry "USA"]
[SourceTitle "playchess.com"]
[Source "ChessBase"]
[SourceQuality "1"]
[TimeControl "5400+30"]

{[%evp 15,78,0,31,0,39,-17,0,-57,-51,-62,-56,-66,-42,-60,-60,-59,-42,-45,-35,-40,-23,-26,-28,-17,-12,-16,-11,-92,-63,-61,-58,-94,-115,-116,-119,-116,-124,-173,-175,-144,-2,-4,0,0,114,121,351,-10,-8,-40,0,-349,-349,-1131,-1100,-1475,-1354,-29991,-29992,-29992,-29992,-29992,-29990,-29990,-29991]} 1. d4 {[%emt 0:03:38]} Nf6 {[%emt 0:00:07]} 2. c4 {[%emt 0:00:09]} g6 {[%emt 0:00:03]} 3. Nc3 {[%emt 0:00:06]} Bg7 {[%emt 0:00:03]} 4. Nf3 {[%emt 0:00:31]} O-O {[%emt 0:00:11]} 5. Bg5 {[%emt 0:01:44]} d6 {[%emt 0:00:15]} 6. e3 {[%emt 0:00:05]} c5 {[%emt 0:00:22]} 7. d5 {[%emt 0:07:39]} h6 {[%emt 0:00:35]} 8. Bh4 {[%emt 0:00:13]} a6 {[%emt 0:03:19][%cal Ob7b5]} (8... g5 $5 {[%cal Rg5h4]} 9. Bg3 Bf5 $11) 9. a4 {[%emt 0:05:30] E61: King's Indian: Early deviations for White, including Smyslov System.} e5 {[%emt 0:05:15] [#] was the old line (9...g5).} (9... g5 $5 {[%cal Rg5h4]} 10. Bg3 Qa5 $11) 10. dxe6 $146 {[%emt 0:09:46]} (10. Nd2 $14) ({Predecessor:} 10. Bd3 Qe8 11. Nd2 Nh7 12. f3 f5 13. a5 Nd7 14. e4 f4 15. Bf2 Bf6 16. Na4 Qd8 {1-0 Danielian,E (2415)-Rapport,J (2327) EU-chT (Women) 21st 2017 (3.1)}) 10... Bxe6 $11 {[%emt 0:00:07]} 11. Qd2 {[%emt 0:00:31]} (11. Be2 $11) 11... Nc6 $15 {[%emt 0:04:41]} 12. Rd1 {[%emt 0:21:02]} Qb6 {[%emt 0:05:24]} 13. Be2 {[%emt 0:10:29]} Rad8 {[%emt 0:04:01]} 14. O-O {[%emt 0:04:16]} g5 {[%emt 0:00:43]} 15. Bg3 {[%emt 0:00:40]} d5 {[%emt 0:00:08]} 16. cxd5 {[%emt 0:07:36]} Nxd5 {[%emt 0:00:08]} 17. Qc2 {[%emt 0:10:15]} Ncb4 {[%emt 0:03:08]} 18. Nxd5 $1 {[%emt 0:00:57]} Rxd5 {[%emt 0:01:39]} 19. Qb1 {[%emt 0:04:20]} Rfd8 $36 {[%emt 0:01:47][%mdl 2048] aiming for ...g4. White is under pressure.} 20. Rxd5 {[%emt 0:01:03]} Rxd5 {[%emt 0:00:54]} 21. Bc4 {[%emt 0:02:48]} (21. h3 $11) 21... Rd8 {[%emt 0:01:07]} 22. a5 {[%emt 0:03:10]} Qc6 {[%emt 0:00:59]} (22... Qxa5 23. Bxe6 fxe6 24. Qg6 $16) 23. Bxe6 {[%emt 0:00:20]} Qxe6 {[%emt 0:00:06]} 24. Rd1 {[%emt 0:00:43]} Rxd1+ {[%emt 0:00:58]} 25. Qxd1 {[%emt 0:00:01]} Bxb2 {[%emt 0:00:10] Black is more active.} 26. Qd8+ {[%emt 0:00:53] [#]} (26. h4 $17 g4 27. Nd2) 26... Kg7 $1 $19 {[%emt 0:00:11]} (26... Kh7 27. Qc7 $15) 27. Bd6 {[%emt 0:00:35]} Qf5 {[%emt 0:03:03]} ({Inferior is} 27... Nc6 28. Bf8+ (28. Qf8+ $2 Kh7 $17) 28... Kh7 29. Qb6 $15) (27... g4 $17 28. Bf8+ (28. Bxc5 $2 gxf3 29. gxf3 Qg6+ 30. Kf1 Qd3+ 31. Qxd3 Nxd3 $19) 28... Kh7) 28. h3 $11 {[%emt 0:01:42]} Kh7 {[%emt 0:00:28]} 29. Qb6 {[%emt 0:01:15]} Nd3 {[%emt 0:01:13]} (29... Qb1+ $11 30. Kh2 Nd3) 30. Qxb7 $16 {[%emt 0:01:20]} c4 $2 {[%emt 0:01:05]} (30... Bc3 $16 {was called for.}) 31. e4 $2 {[%emt 0:01:56]} (31. Qxa6 $18 Qe6 32. Qb6) 31... Qe6 $11 {[%emt 0:01:07]} 32. Qc6 {[%emt 0:00:36]} c3 {[%emt 0:01:48] Hoping for ...Nb4.} (32... Ne5 {simplifies} 33. Qc5 Nxf3+ 34. gxf3 Bf6) 33. Nd4 $2 {[%emt 0:00:14][%mdl 8192]} (33. e5 $11) 33... Qf6 $1 $19 {[%emt 0:00:11][%csl LRd4,LRf2]} 34. Nf5 $2 {[%emt 0:00:12]} (34. Qd5 Qxf2+ 35. Kh1) 34... Nb4 {[%emt 0:00:08][%mdl 64] Pin} 35. Qe8 {[%emt 0:01:13]} c2 {[%emt 0:00:06]} 36. Bxb4 {[%emt 0:00:28]} c1=Q+ {[%emt 0:00:08] Black mates.} 37. Kh2 {[%emt 0:00:10]} Qf4+ {[%emt 0:01:12]} 38. Kg1 {[%emt 0:00:33] [#]} Ba3 $1 {[%emt 0:00:39]} 39. Bc3 {[%emt 0:00:40]} Qc1+ {[%emt 0:00:09] Weighted Error Value: White=0.94/Black=0.25 (precise)} ({And not} 39... Qxc3 40. Qxf7+ Kh8 41. Qe8+ Kh7 42. Qf7+ Kh8 43. Qe8+ Kh7 44. Qf7+ $11) 0-1

[Event "10th Cherry Blossom Classic 2023"]
[Site "Dulles"]
[Date "2023.05.30"]
[Round "9.18"]
[White "Ouellet, Maili-Jade"]
[Black "Shoykhet, Benjamin"]
[Result "1-0"]
[ECO "D20"]
[WhiteElo "2246"]
[BlackElo "1919"]
[Annotator "TA"]
[PlyCount "117"]
[EventDate "2023.05.24"]
[EventType "swiss"]
[EventCountry "USA"]
[SourceTitle "playchess.com"]
[Source "ChessBase"]
[SourceQuality "1"]
[TimeControl "5400+30"]

{[%evp 10,117,53,18,39,19,52,33,60,72,59,73,68,51,47,33,41,42,42,37,37,23,38,15,97,0,0,0,8,8,8,6,11,7,46,52,41,48,48,48,48,49,33,38,41,45,48,36,32,1,6,0,0,-47,-47,-47,0,0,397,390,381,393,382,378,558,545,536,518,576,568,568,568,545,527,1187,1187,1074,738,1077,1077,964,943,2122,1889,4129,4125,2843,2925,2281,2191,2350,2395,4125,1798,29962,5412,29982,29983,29983,29984,29984,29985,29985,29985,29985,29986,29986,29986,29986,29985]} 1. d4 {[%emt 0:00:02]} d5 {[%emt 0:00:06][%cal Bd7d5,Bd5c4][%mdl 32]} 2. c4 {[%emt 0:00:07]} dxc4 {[%emt 0:00:05]} 3. e4 {[%emt 0:00:04]} e5 {[%emt 0:00:16]} 4. Nf3 {[%emt 0:00:05]} Bb4+ {[%emt 0:00:09]} 5. Nc3 {[%emt 0:00:07]} exd4 {[%emt 0:00:23]} 6. Nxd4 {[%emt 0:00:06]} Ne7 {[%emt 0:00:24] 6...Nd7 is more fashionable. D20: Queen's Gambit Accepted: 3 e3 and 3 e4.} 7. Bxc4 {[%emt 0:00:10]} O-O {[%emt 0:02:45]} 8. O-O {[%emt 0:00:36]} a6 {[%emt 0:00:26] [#] White is slightly better.} 9. Be3 $146 {[%emt 0:01:16]} ({Predecessor:} 9. Bg5 Qd7 10. Qb3 Bxc3 11. Qxc3 Nbc6 12. Nf3 Qe8 13. Rfe1 Ng6 14. Be3 Nge7 15. Bf4 {1-0 Karason,A (2270)-Pozimski,S (2019) EU-ch 21st Reykjavik 2021 (4)}) 9... b5 {[%emt 0:01:55]} 10. Be2 {[%emt 0:03:13]} Bb7 {[%emt 0:02:43]} 11. Qc2 {[%emt 0:00:42]} (11. a4 $5 {[%cal Ra4b5]}) 11... c5 {[%emt 0:02:05]} 12. Nb3 {[%emt 0:01:08]} c4 {[%emt 0:02:05]} 13. Nc5 {[%emt 0:02:50]} Bxc5 {[%emt 0:01:30]} 14. Bxc5 {[%emt 0:00:05]} Qc7 {[%emt 0:00:07]} 15. Be3 {[%emt 0:05:59] This pair of bishops is nice.} Nd7 {[%emt 0:01:02]} 16. Rac1 {[%emt 0:05:05]} Nc5 {[%emt 0:02:00] [#]} (16... Rac8 $11) 17. b4 {[%emt 0:01:42]} (17. b3 $1 $16) 17... Ne6 $11 {[%emt 0:00:42]} 18. Rfd1 {[%emt 0:05:56]} Rfd8 {[%emt 0:00:34]} 19. a4 {[%emt 0:01:36]} Qe5 {[%emt 0:08:27]} 20. Bf1 {[%emt 0:07:57]} Nc6 {[%emt 0:04:45] Hoping for ...Ncd4.} 21. Nd5 {[%emt 0:15:43] next f4 is good for White.} Ncd4 {[%emt 0:06:18]} (21... f5 $5 {[%cal Rf5e4]}) 22. Bxd4 {[%emt 0:00:49]} Nxd4 {[%emt 0:00:07]} 23. Qc3 {[%emt 0:03:04]} Nc6 {[%emt 0:00:14]} (23... Qxe4 $2 24. Rxd4 (24. Qxd4 $2 {is the wrong capture.} Qxd4 25. Rxd4 Rxd5 $17) 24... Qe5 25. Re1 $18) 24. axb5 {[%emt 0:10:30]} axb5 {[%emt 0:06:59]} 25. Qxe5 {[%emt 0:02:02]} Nxe5 {[%emt 0:01:45]} 26. Nc7 {[%emt 0:00:52][%csl LRa8,LRb5]} Rxd1 {[%emt 0:04:16]} 27. Rxd1 {[%emt 0:00:05]} Rb8 {[%emt 0:00:24]} 28. Nxb5 {[%emt 0:07:45]} Bxe4 {[%emt 0:00:31]} 29. Nd6 {[%emt 0:02:16]} Bd3 {[%emt 0:06:00]} 30. b5 {[%emt 0:07:18]} g5 {[%emt 0:04:41]} 31. Rc1 {[%emt 0:06:00]} (31. f3 $11 {is more appropriate.}) 31... Rd8 $1 $15 {[%emt 0:02:00]} 32. f4 $1 {[%emt 0:02:22]} (32. Nxc4 $2 {too greedy.} Bxc4 33. Rxc4 Nxc4 34. Bxc4 Rd1+ 35. Bf1 f5 $19) 32... gxf4 {[%emt 0:00:34]} (32... Rxd6 $15 {was preferrable.} 33. fxe5 Rb6) 33. Nxc4 $11 {[%emt 0:00:39]} Rc8 $2 {[%emt 0:07:08][%mdl 8192] White stays focused until the end.} (33... Bxf1 $11 {and Black stays safe.} 34. Kxf1 (34. Nxe5 Bxb5 35. Rb1 Ba6 $15) 34... Rc8) 34. Nxe5 $18 {[%emt 0:00:46][%mdl 64] Discovered Attack} Rxc1 {[%emt 0:00:06][%csl Gd3][%cal Rc1f1]} 35. Nxd3 {[%emt 0:00:04]} Rb1 {[%emt 0:00:51]} 36. Nxf4 {[%emt 0:00:12] Kf2 would be deadly.} Kf8 {[%emt 0:00:12]} (36... Kg7 {is a better defense.} 37. Kf2 Kf6) 37. Kf2 {[%emt 0:00:15]} Ke7 {[%emt 0:00:04]} 38. Bd3 {[%emt 0:01:27][%csl LRb1,LRh7]} Rb2+ {[%emt 0:00:13]} 39. Kf3 {[%emt 0:00:12]} Kd6 {[%emt 0:00:20]} 40. h4 {[%emt 0:00:22]} h6 {[%emt 0:00:28]} 41. Kg4 {[%emt 0:00:47]} Ke5 {[%emt 0:00:47]} 42. g3 {[%emt 0:00:20]} Kf6 {[%emt 0:00:32]} 43. Bc4 {[%emt 0:02:06]} Rc2 {[%emt 0:00:45]} 44. Bd5 {[%emt 0:00:33] aiming for b6.} Rb2 {[%emt 0:01:32]} 45. Bc6 {[%emt 0:00:05][%cal Ob5b6] b6! is the strong threat.} Rb3 {[%emt 0:00:07] [#]} 46. b6 $1 {[%emt 0:00:28]} Ke7 {[%emt 0:00:27]} (46... Rb4 47. Kh5) 47. b7 {[%emt 0:00:12]} Kd6 {[%emt 0:00:03]} 48. Bd5 {[%emt 0:00:23]} Rb6 {[%emt 0:00:29]} 49. Kf5 {[%emt 0:00:34]} Kc7 {[%emt 0:00:31]} 50. Be4 {[%emt 0:00:40] Intending Nd5+ and mate.} Rd6 {[%emt 0:00:17]} 51. Nd3 {[%emt 0:00:24]} (51. g4 $142 Rd4 52. h5) 51... Rg6 {[%emt 0:03:11]} 52. Nc5 {[%emt 0:00:46]} (52. Nb4 $142 Rd6 53. Bc6 Rd8 54. Na6+ Kd6 55. b8=Q+ Rxb8 56. Nxb8 Kc7 57. Bd5) 52... Rb6 {[%emt 0:00:15] [#]} 53. b8=Q+ $1 {[%emt 0:00:26][%mdl 64] Decoy. White mates.} Kxb8 {[%emt 0:01:25]} 54. Nd7+ {[%emt 0:00:05]} Kc7 {[%emt 0:00:03]} 55. Nxb6 {[%emt 0:00:07]} Kxb6 {[%emt 0:00:04]} 56. Kf6 {[%emt 0:00:09]} Kc5 {[%emt 0:00:07]} 57. Kxf7 {[%emt 0:00:11]} Kd4 {[%emt 0:00:02]} 58. Bf3 {[%emt 0:02:00]} Ke3 {[%emt 0:00:20]} 59. Bd1 {[%emt 0:00:05] Weighted Error Value: White=0.07 (flawless) /Black=0.35} 1-0